bitfinex/quotes_SOLUSD_20250201
["timestamp","ask_amount","ask_price","bid_price","bid_amount"]
[1738442849309,20.0,217.67,217.42,22.22689009]
[1738442849519,20.0,217.54,217.41,6.0169]
[1738442850035,0.86205302,217.68,217.49,22.25689009]
[1738442850227,20.0,217.67,217.49,22.25689009]
[1738442850438,0.86169523,217.66,217.52,1.57]
[1738442850641,0.86162346,217.69,217.55,22.22689009]
[1738442850961,13.41184853,217.74,217.55,22.22689009]
[1738442851119,0.8615147,217.73,217.55,22.22689009]
[1738442851323,0.8615147,217.73,217.54,29.24379009]
[1738442851539,20.0,217.69,217.54,29.24379009]
[1738442851849,0.861616,217.68,217.54,7.0169]
[1738442852059,13.41184853,217.72,217.54,10.8969]
[1738442852060,0.86159214,217.71,217.54,10.8969]
[1738442852549,20.0,217.65,217.54,9.8969]
[1738442853548,0.86159327,217.75,217.59,36.28971483]
[1738442853753,0.86138476,217.77,217.59,36.28971483]
[1738442854251,20.0,217.73,217.59,36.28971483]
[1738442854458,0.86142638,217.72,217.58,13.41184853]
[1738442855352,0.86142638,217.72,217.59,36.28971483]
[1738442855545,0.86137718,217.75,217.63,36.28971483]
[1738442855733,0.86137718,217.79,217.65,36.28971483]
[1738442856055,13.41184853,217.78,217.63,36.28971483]
[1738442856257,0.86121824,217.77,217.63,36.28971483]
[1738442856724,0.86121824,217.77,217.65,36.28971483]
[1738442856926,0.86106849,217.83,217.69,36.28971483]
[1738442857128,0.86106849,217.83,217.69,3.86]
[1738442857327,13.41184853,217.82,217.69,3.86]
[1738442857632,0.86104093,217.81,217.69,3.86]
[1738442858247,20.0,217.79,217.65,6.3288]
[1738442858563,0.86122814,217.78,217.59,10.1888]
[1738442858953,0.86122814,217.78,217.6,13.41184853]
[1738442859277,20.0,217.73,217.61,3.86]
[1738442859453,0.8614902,217.72,217.61,3.86]
[1738442860283,0.86128794,217.77,217.62,13.41184853]
[1738442860650,0.86127033,217.82,217.67,13.41184853]
[1738442860873,0.86127033,217.82,217.66,36.28971483]
[1738442861058,13.41184853,217.81,217.64,36.28971483]
[1738442861375,20.86122628,217.8,217.65,13.41184853]
[1738442862068,20.0,217.76,217.64,3.86]
[1738442862261,0.86135362,217.75,217.64,3.86]
[1738442862583,20.0,217.71,217.59,6.3288]
[1738442862875,20.0,217.71,217.6,13.41184853]
[1738442863090,0.86126606,217.81,217.65,13.41184853]
[1738442863244,0.86126606,217.81,217.68,36.28971483]
[1738442863578,15.77841387,217.91,217.69,13.41184853]
[1738442863579,0.86103319,217.83,217.69,13.41184853]
[1738442864153,20.86103319,217.83,217.69,13.41184853]
[1738442864354,0.86103319,217.83,217.7,36.28971483]
[1738442864576,0.86092487,217.85,217.71,13.41184853]
[1738442864775,20.0,217.83,217.68,3.86]
[1738442864949,0.86103893,217.82,217.68,3.86]
[1738442865344,0.063,217.8,217.68,3.86]
[1738442866065,20.0,217.78,217.62,36.28971483]
[1738442866385,0.86129312,217.77,217.59,6.3288]
[1738442866569,0.86129312,217.77,217.61,3.86]
[1738442866883,0.86129312,217.77,217.62,13.41184853]
[1738442867565,0.92425417,217.8,217.66,36.28971483]
[1738442868081,0.92425417,217.8,217.65,13.41184853]
[1738442868684,0.92425417,217.8,217.62,13.41184853]
[1738442868858,20.0,217.76,217.62,13.41184853]
[1738442869059,0.86130649,217.75,217.6,3.84]
[1738442869460,0.063,217.8,217.66,36.28971483]
[1738442869657,0.063,217.8,217.67,13.41184853]
[1738442870387,0.063,217.8,217.69,13.41184853]
[1738442870753,0.063,217.8,217.72,36.28971483]
[1738442871357,0.063,217.8,217.74,36.28971483]
[1738442871566,0.063,217.8,217.73,13.41184853]
[1738442874582,0.063,217.8,217.75,13.41184853]
[1738442874890,0.063,217.8,217.73,3.82]
[1738442875484,0.063,217.8,217.73,17.23184853]
[1738442875858,0.063,217.8,217.71,1.6233]
[1738442876060,0.063,217.8,217.69,3.8]
[1738442876270,0.063,217.8,217.69,13.41184853]
[1738442876476,0.063,217.8,217.69,17.21184853]
[1738442877164,0.063,217.8,217.69,13.41184853]
[1738442877369,0.063,217.8,217.67,3.8]
[1738442877577,0.063,217.8,217.68,13.41184853]
[1738442878393,20.0,217.76,217.68,13.41184853]
[1738442878900,20.0,217.76,217.63,26.09259132]
[1738442879192,20.0,217.76,217.66,13.41184853]
[1738442880366,0.86107281,217.75,217.6,6.2702]
[1738442880566,0.86107281,217.75,217.6,10.0502]
[1738442881073,0.86107281,217.75,217.61,13.41184853]
[1738442881600,20.86107281,217.75,217.58,3.78]
[1738442881769,20.86107281,217.75,217.57,1.6233]
[1738442882090,20.86107281,217.75,217.58,13.41184853]
[1738442882471,20.86107281,217.75,217.58,35.70443985]
[1738442882682,1.5274,217.78,217.65,13.41184853]
[1738442882875,1.5274,217.78,217.67,13.41184853]
[1738442883190,6.6119,217.79,217.7,22.29259132]
[1738442883401,6.6119,217.79,217.69,13.41184853]
[1738442883578,6.6119,217.79,217.7,22.29259132]
[1738442883892,0.063,217.8,217.74,13.41184853]
[1738442884468,0.063,217.8,217.75,13.41184853]
[1738442884697,0.063,217.8,217.77,13.41184853]
[1738442884880,0.063,217.8,217.71,22.29259132]
[1738442885066,0.063,217.8,217.69,3.78]
[1738442885487,0.063,217.8,217.7,13.41184853]
[1738442888311,0.063,217.8,217.75,36.23866516]
[1738442888812,0.063,217.8,217.76,13.41184853]
[1738442888998,0.063,217.8,217.77,36.23866516]
[1738442889409,0.063,217.8,217.79,36.23866516]
[1738442889811,0.063,217.8,217.79,49.65051369]
[1738442891791,0.063,217.8,217.79,49.90149369]
[1738442892010,0.063,217.8,217.79,86.01466885]
[1738442892319,6.0798,217.97,217.84,2.0]
[1738442892493,20.0,217.94,217.91,36.23866516]
[1738442892687,0.063,218.02,217.92,13.41184853]
[1738442893403,0.063,218.02,217.94,13.41184853]
[1738442893918,0.063,218.02,217.96,13.41184853]
[1738442894120,0.063,218.02,217.91,3.86]
[1738442894319,0.92286134,218.02,217.91,3.86]
[1738442894528,20.0,218.0,217.91,3.86]
[1738442894819,20.0,218.0,217.92,13.41184853]
[1738442895021,0.063,218.02,217.95,36.23866516]
[1738442895212,0.063,218.02,217.98,13.41184853]
[1738442895818,0.063,218.02,217.93,36.23866516]
[1738442896324,0.063,218.02,217.9,36.23866516]
[1738442896622,0.063,218.02,217.85,1.0]
[1738442896623,0.86014062,218.01,217.86,36.23866516]
[1738442896797,0.063,218.02,217.89,13.41184853]
[1738442897122,0.92307319,218.02,217.89,13.41184853]
[1738442897297,0.92307319,218.02,217.88,13.41184853]
[1738442897500,0.92307319,218.02,217.88,49.65051369]
[1738442897999,0.92307319,218.02,217.86,36.23866516]
[1738442898198,20.0,217.97,217.81,36.23866516]
[1738442898506,20.0,217.97,217.91,13.41184853]
[1738442899235,20.0,217.97,217.93,13.41184853]
[1738442899528,0.063,218.02,217.95,36.23866516]
[1738442900097,0.063,218.02,217.93,13.41184853]
[1738442900098,20.063,218.02,217.97,36.23866516]
[1738442900296,0.063,218.02,217.98,13.41184853]
[1738442900494,0.063,218.02,217.97,36.23866516]
[1738442900495,0.063,218.02,218.01,49.65051369]
[1738442900928,0.063,218.02,218.01,13.41184853]
[1738442901107,0.063,218.02,217.95,40.09866516]
[1738442901517,0.063,217.97,217.96,14.41184853]
[1738442902033,0.063,217.97,217.96,15.53733853]
[1738442902331,0.063,217.97,217.96,15.91380853]
[1738442902528,0.063,218.02,218.01,2.0]
[1738442902829,0.063,218.02,218.01,50.65051369]
[1738442903220,0.063,218.02,218.01,49.65051369]
[1738442903422,0.063,218.02,218.01,50.65051369]
[1738442903847,0.063,218.02,218.01,50.77600369]
[1738442904146,0.063,218.02,218.01,50.65051369]
[1738442904344,0.063,218.02,218.01,49.65051369]
[1738442905839,0.063,218.02,218.01,51.77600369]
[1738442906029,0.063,218.02,218.01,49.65051369]
[1738442907748,0.063,218.02,218.01,35.63918219]
[1738442909137,0.063,218.02,218.01,36.63918219]
[1738442909546,0.063,218.02,218.01,35.63918219]
[1738442909750,0.063,218.02,218.01,36.63918219]
[1738442909924,0.063,218.02,218.01,37.76467219]
[1738442910430,0.063,218.02,218.01,42.35157219]
[1738442910834,0.063,218.02,218.01,64.57890585]
[1738442911548,0.063,218.02,218.01,64.95537585]
[1738442911751,8.0453,218.2,218.05,1.0]
[1738442911958,6.1619,218.26,218.13,13.41184853]
[1738442912133,20.0,218.23,218.13,13.41184853]
[1738442912325,0.85911608,218.25,218.13,13.41184853]
[1738442912532,6.1619,218.26,218.13,13.41184853]
[1738442912861,0.92219524,218.24,218.1,3.8]
[1738442913432,20.0,218.23,218.1,3.8]
[1738442913632,0.85938415,218.22,218.11,13.41184853]
[1738442915548,20.0,218.23,218.12,13.41184853]
[1738442915750,20.0,218.23,218.11,13.41184853]
[1738442915964,20.0,218.23,218.12,36.09755724]
[1738442916160,20.0,218.23,218.13,13.41184853]
[1738442917674,0.85922471,218.22,218.11,13.41184853]
[1738442917842,0.85922471,218.22,218.06,39.87755724]
[1738442918055,0.85922471,218.22,218.02,36.09755724]
[1738442918056,1.5797,218.15,218.02,36.09755724]
[1738442918251,1.5797,218.15,218.02,3.78]
[1738442918450,0.92262487,218.14,217.98,36.09755724]
[1738442918665,0.92262487,218.14,217.97,36.09755724]
[1738442918860,0.92262487,218.14,218.0,36.09755724]
[1738442919072,0.92262487,218.14,217.98,3.78]
[1738442919073,0.063,218.14,218.03,13.41184853]
[1738442919575,0.063,218.14,218.04,49.50940577]
[1738442920149,0.063,218.14,218.06,36.09755724]
[1738442920668,0.063,218.14,218.04,13.41184853]
[1738442920669,0.063,218.14,218.08,13.41184853]
[1738442920874,0.063,218.14,218.1,13.41184853]
[1738442921061,0.063,218.14,218.05,36.09755724]
[1738442921255,0.063,218.14,218.05,13.41184853]
[1738442921867,0.063,218.14,218.0,36.09755724]
[1738442922073,0.92266473,218.14,217.98,39.87755724]
[1738442922270,0.92266473,218.14,217.99,13.41184853]
[1738442922576,0.92266473,218.14,218.01,13.41184853]
[1738442922779,20.0,218.1,218.01,13.41184853]
[1738442922962,20.0,218.1,217.99,13.41184853]
[1738442923168,20.0,218.1,217.96,39.85755724]
[1738442923353,20.0,218.1,217.99,13.41184853]
[1738442923554,20.0,218.1,217.97,49.50940577]
[1738442923981,20.0,218.1,217.98,36.09755724]
[1738442924185,20.0,218.1,218.01,13.41184853]
[1738442924489,20.0,218.1,218.0,13.41184853]
[1738442924987,0.063,218.14,217.87,36.09755724]
[1738442924988,20.0,218.05,217.87,36.09755724]
[1738442925164,0.86025025,218.04,218.01,0.03]
[1738442925359,0.86025025,218.04,217.89,36.09755724]
[1738442925573,0.86025025,218.04,217.9,13.41184853]
[1738442926897,20.0,218.05,217.93,36.09755724]
[1738442927271,20.0,218.05,217.94,13.41184853]
[1738442927700,20.0,218.05,217.91,36.09755724]
[1738442928013,0.85999182,218.04,217.87,39.87755724]
[1738442928193,0.85999182,218.04,217.88,13.41184853]
[1738442929100,0.85999182,218.04,217.88,49.50940577]
[1738442929497,0.85999182,218.04,217.88,17.19184853]
[1738442929909,20.0,218.0,217.83,36.09755724]
[1738442930076,20.0,217.95,217.8,3.81]
[1738442930270,0.860469,217.94,217.8,3.81]
[1738442931305,0.860469,217.94,217.81,49.50940577]
[1738442931610,20.0,217.95,217.86,13.41184853]
[1738442932286,20.0,217.95,217.88,13.41184853]
[1738442932511,20.0,217.95,217.87,13.41184853]
[1738442933386,20.0,217.95,217.85,36.09755724]
[1738442933710,20.0,217.95,217.88,13.41184853]
[1738442937919,20.0,217.95,217.87,0.03]
[1738442938131,0.86027049,217.94,217.87,0.03]
[1738442938700,1.6039,217.89,217.8,0.03]
[1738442938941,20.0,217.84,217.8,0.03]
[1738442939226,0.86089941,217.83,217.8,0.03]
[1738442940218,19.97037915,217.84,217.8,0.03]
[1738442942737,0.86084065,217.83,217.8,0.03]
[1738442945225,20.0,217.79,217.65,0.03]
[1738442945543,0.86128546,217.78,217.65,0.03]
[1738442946645,0.86104987,217.77,217.65,0.03]
[1738442949842,0.86122193,217.78,217.65,0.03]
[1738442950038,0.86122193,217.78,217.65,13.44184853]
[1738442950234,20.86108576,217.79,217.66,22.29840683]
[1738442950449,20.0,217.79,217.71,13.41184853]
[1738442950750,0.86096918,217.81,217.71,13.41184853]
[1738442950936,7.8916,217.82,217.71,13.41184853]
[1738442951785,7.8916,217.82,217.72,22.29840683]
[1738442951934,7.8916,217.82,217.74,22.29840683]
[1738442952129,20.0,217.79,217.73,13.41184853]
[1738442952529,7.8916,217.82,217.73,13.41184853]
[1738442953150,6.2389,217.82,217.75,13.41184853]
[1738442953771,20.0,217.79,217.75,13.41184853]
[1738442956148,20.0,217.79,217.72,3.68]
[1738442956481,0.86094878,217.78,217.65,22.32840683]
[1738442956649,0.86094878,217.78,217.65,0.03]
[1738442957976,1.6527,217.77,217.65,0.03]
[1738442958181,0.86132756,217.76,217.65,0.03]
[1738442960261,20.0,217.72,217.65,0.03]
[1738442960581,0.86138144,217.71,217.65,0.03]
[1738442961252,0.86138144,217.71,217.51,3.73]
[1738442961253,7.8916,217.66,217.51,22.32840683]
[1738442961486,20.0,217.63,217.52,13.44184853]
[1738442961671,20.0,217.63,217.53,22.29840683]
[1738442961871,20.0,217.63,217.58,13.44184853]
[1738442962462,20.0,217.63,217.59,22.29840683]
[1738442962865,8.2288,217.72,217.6,13.41184853]
[1738442963088,0.86130809,217.71,217.61,22.29840683]
[1738442963401,20.0,217.69,217.61,22.29840683]
[1738442963986,20.0,217.69,217.6,13.41184853]
[1738442964369,20.0,217.69,217.58,0.03]
[1738442964571,20.0,217.69,217.58,13.44184853]
[1738442965698,20.0,217.69,217.59,22.29840683]
[1738442966588,20.0,217.69,217.6,13.41184853]
[1738442967182,20.0,217.69,217.58,0.03]
[1738442969703,20.0,217.69,217.58,22.32840683]
[1738442970275,20.0,217.69,217.61,13.41184853]
[1738442970802,8.2288,217.72,217.64,22.29840683]
[1738442970971,6.5843,217.72,217.64,22.29840683]
[1738442971609,20.0,217.75,217.67,13.41184853]
[1738442971779,8.0298,217.78,217.67,13.41184853]
[1738442971975,8.0298,217.78,217.58,28.82480683]
[1738442971976,8.0298,217.78,217.69,13.41184853]
[1738442972181,8.0298,217.78,217.58,28.82480683]
[1738442972182,0.86097696,217.77,217.6,22.29840683]
[1738442972415,20.0,217.75,217.58,22.32840683]
[1738442972705,0.86128052,217.74,217.58,22.32840683]
[1738442972902,0.86128052,217.74,217.6,22.29840683]
[1738442973808,0.86128052,217.74,217.61,13.41184853]
[1738442973992,20.0,217.75,217.65,13.41184853]
[1738442974182,20.0,217.75,217.6,22.29840683]
[1738442974381,0.86123104,217.74,217.6,22.29840683]
[1738442974808,0.86123104,217.74,217.61,13.41184853]
[1738442976303,20.0,217.75,217.62,35.71025536]
[1738442978708,0.86118684,217.74,217.61,13.41184853]
[1738442979016,0.86118684,217.74,217.58,22.32840683]
[1738442979188,0.86118684,217.74,217.6,22.29840683]
[1738442979384,20.0,217.75,217.58,0.03]
[1738442979385,20.0,217.75,217.63,13.41184853]
[1738442980504,20.0,217.75,217.65,13.41184853]
[1738442980688,0.86112094,217.74,217.58,0.03]
[1738442980889,0.86112094,217.74,217.58,3.63]
[1738442981124,0.86112094,217.74,217.58,0.03]
[1738442981719,0.86112094,217.74,217.58,13.44184853]
[1738442982190,20.0,217.7,217.58,17.04184853]
[1738442982389,0.86144048,217.69,217.58,17.04184853]
[1738442983323,1.6517,217.68,217.58,0.03]
[1738442983516,20.0,217.64,217.58,0.03]
[1738442983719,0.86174126,217.63,217.58,0.03]
[1738442984520,20.0,217.64,217.58,0.03]
[1738442986528,20.0,217.64,217.59,13.41184853]
[1738442986818,6.3781,217.67,217.59,13.41184853]
[1738442987022,20.0,217.64,217.58,0.03]
[1738442987518,0.86161504,217.63,217.58,0.03]
[1738442987897,20.0,217.64,217.58,0.03]
[1738442988434,20.0,217.64,217.58,13.44184853]
[1738442988639,6.3781,217.67,217.58,13.44184853]
[1738442989427,20.0,217.64,217.58,13.44184853]
[1738442989801,20.0,217.64,217.58,0.03]
[1738442991131,0.86163409,217.63,217.58,0.03]
[1738442995838,20.0,217.64,217.58,0.03]
[1738442996923,0.86155785,217.63,217.58,0.03]
[1738442997239,20.0,217.64,217.58,0.03]
[1738442997448,0.86174012,217.63,217.58,0.03]
[1738442997625,20.0,217.64,217.58,0.03]
[1738443001615,6.3781,217.67,217.6,13.41184853]
[1738443001856,6.029,217.72,217.63,22.29840683]
[1738443002519,6.029,217.72,217.6,25.87840683]
[1738443002834,20.0,217.69,217.63,13.41184853]
[1738443003255,20.0,217.69,217.6,3.58]
[1738443005566,6.029,217.72,217.61,13.41184853]
[1738443005736,6.029,217.72,217.61,35.71025536]
[1738443005937,0.86124156,217.71,217.6,3.58]
[1738443006271,20.0,217.69,217.6,3.58]
[1738443006939,18.5,217.69,217.6,3.58]
[1738443007144,18.5,217.69,217.61,13.41184853]
[1738443007356,6.029,217.72,217.64,13.41184853]
[1738443008240,0.86121997,217.71,217.61,13.41184853]
[1738443009569,20.0,217.69,217.6,3.58]
[1738443009873,20.0,217.69,217.58,3.61]
[1738443010038,0.86140897,217.68,217.58,0.03]
[1738443012249,1.6487,217.67,217.58,0.03]
[1738443012445,0.86172348,217.66,217.58,0.03]
[1738443017369,0.86165119,217.65,217.58,0.03]
[1738443017560,0.86165631,217.68,217.58,0.03]
[1738443025156,2.02451088,217.68,217.58,0.03]
[1738443028376,20.0,217.64,217.58,0.03]
[1738443028577,0.86186108,217.63,217.58,0.03]
[1738443028779,20.0,217.55,217.52,0.03]
[1738443028985,0.86200962,217.54,217.52,0.03]
[1738443029856,20.0,217.55,217.52,0.03]
[1738443035472,0.063,217.58,217.52,0.03]
[1738443037076,0.063,217.58,217.38,22.35409359]
[1738443037077,20.0,217.56,217.38,22.35409359]
[1738443037258,20.0,217.51,217.38,22.35409359]
[1738443037463,1.5542,217.49,217.35,25.93409359]
[1738443037663,1.5542,217.49,217.38,22.35409359]
[1738443037863,1.5542,217.49,217.39,13.41184853]
[1738443038074,1.5542,217.49,217.39,35.76594212]
[1738443038285,2.41641792,217.49,217.38,22.35409359]
[1738443038505,1.5542,217.49,217.38,22.35409359]
[1738443038808,0.86223095,217.48,217.36,22.35409359]
[1738443039011,0.86223095,217.48,217.35,3.58]
[1738443039183,0.86223095,217.48,217.35,25.93409359]
[1738443039379,0.86223095,217.48,217.36,22.35409359]
[1738443039599,1.5542,217.49,217.37,22.35409359]
[1738443039804,1.5542,217.49,217.39,22.35409359]
[1738443039999,20.0,217.51,217.4,22.35409359]
[1738443040715,20.0,217.51,217.41,13.41184853]
[1738443041607,20.0,217.51,217.4,13.41184853]
[1738443042124,20.0,217.51,217.41,13.41184853]
[1738443042629,20.0,217.51,217.41,35.76594212]
[1738443042820,20.0,217.51,217.43,13.41184853]
[1738443043122,7.6776,217.54,217.43,13.41184853]
[1738443043413,20.0,217.51,217.43,35.76594212]
[1738443043603,7.6776,217.54,217.44,35.76594212]
[1738443044621,0.063,217.58,217.44,35.76594212]
[1738443044791,0.063,217.58,217.46,22.35409359]
[1738443045117,20.0,217.56,217.46,22.35409359]
[1738443045285,20.0,217.56,217.47,13.41184853]
[1738443045718,20.0,217.56,217.46,13.41184853]
[1738443046021,0.86186792,217.55,217.43,23.86929359]
[1738443046709,20.0,217.56,217.44,13.41184853]
[1738443047218,20.0,217.56,217.46,0.03]
[1738443047389,0.86195987,217.55,217.46,0.03]
[1738443048218,20.0,217.56,217.47,13.41184853]
[1738443049614,20.0,217.56,217.47,3.58]
[1738443050006,0.86190661,217.55,217.46,0.03]
[1738443051528,20.0,217.56,217.46,13.44184853]
[1738443051919,20.0,217.56,217.46,0.03]
[1738443059323,20.063,217.56,217.46,0.03]
[1738443060235,0.86194119,217.55,217.46,0.03]
[1738443061747,20.063,217.56,217.46,13.99723801]
[1738443061911,20.063,217.56,217.47,13.41184853]
[1738443062549,20.063,217.56,217.51,13.41184853]
[1738443062550,0.063,217.56,217.51,13.41184853]
[1738443063432,0.063,217.56,217.53,13.41184853]
[1738443063613,0.063,217.56,217.55,13.96723801]
[1738443063951,0.063,217.56,217.55,27.37908654]
[1738443064146,0.063,217.56,217.55,13.41184853]
[1738443064518,0.063,217.56,217.55,27.37908654]
[1738443065044,0.063,217.56,217.55,13.41184853]
[1738443065252,0.063,217.56,217.54,3.58]
[1738443067331,0.063,217.56,217.46,13.99723801]
[1738443067532,0.063,217.56,217.48,3.58]
[1738443068030,0.063,217.56,217.49,13.41184853]
[1738443069462,0.063,217.56,217.48,13.41184853]
[1738443069655,0.063,217.56,217.46,0.03]
[1738443070042,20.0,217.52,217.46,0.03]
[1738443070361,0.86212136,217.51,217.46,0.03]
[1738443075470,7.9626,217.55,217.47,13.96723801]
[1738443075848,7.9626,217.55,217.49,13.96723801]
[1738443076052,0.063,217.56,217.52,13.96723801]
[1738443076264,0.063,217.56,217.55,13.96723801]
[1738443076457,0.063,217.56,217.55,27.37908654]
[1738443077267,0.063,217.56,217.55,13.41184853]
[1738443078452,0.063,217.56,217.51,13.96723801]
[1738443078769,0.063,217.56,217.48,3.58]
[1738443079077,0.063,217.56,217.49,27.37908654]
[1738443079254,0.063,217.56,217.47,3.58]
[1738443079573,1.5448,217.55,217.47,3.58]
[1738443079750,0.8620169,217.54,217.46,0.03]
[1738443079957,20.0,217.5,217.46,0.03]
[1738443080356,20.0,217.5,217.46,13.44184853]
[1738443080754,1.5448,217.55,217.46,27.40908654]
[1738443080967,21.5448,217.55,217.46,27.40908654]
[1738443081473,21.5448,217.55,217.48,13.41184853]
[1738443081773,0.063,217.56,217.52,22.34017857]
[1738443081979,0.063,217.56,217.55,35.7520271]
[1738443087284,0.063,217.56,217.55,13.41184853]
[1738443088180,0.063,217.56,217.5,3.58]
[1738443089579,0.063,217.56,217.54,13.41184853]
[1738443089786,0.063,217.56,217.53,13.41184853]
[1738443090078,0.063,217.56,217.5,3.58]
[1738443092185,0.063,217.56,217.51,13.41184853]
[1738443092385,0.063,217.56,217.5,3.58]
[1738443092890,0.063,217.56,217.46,0.03]
[1738443093079,0.063,217.56,217.46,3.61]
[1738443093477,1.5756,217.55,217.46,0.03]
[1738443093681,20.0,217.51,217.46,0.03]
[1738443094686,20.0,217.51,217.48,13.41184853]
[1738443094886,1.5756,217.55,217.48,35.7520271]
[1738443095077,0.063,217.56,217.51,13.41184853]
[1738443095274,20.063,217.56,217.51,35.7520271]
[1738443095975,20.063,217.56,217.53,13.41184853]
[1738443096869,0.063,217.56,217.53,13.41184853]
[1738443097070,0.063,217.56,217.55,13.41184853]
[1738443099382,0.063,217.56,217.52,22.34017857]
[1738443099600,0.063,217.56,217.52,13.41184853]
[1738443101901,0.063,217.56,217.51,3.58]
[1738443101902,0.063,217.56,217.54,13.41184853]
[1738443104912,0.063,217.56,217.52,35.7520271]
[1738443105206,0.063,217.56,217.5,3.58]
[1738443105402,0.063,217.56,217.49,3.58]
[1738443105913,0.063,217.56,217.5,13.41184853]
[1738443106113,0.063,217.56,217.53,13.41184853]
[1738443106485,0.063,217.56,217.54,13.41184853]
[1738443106797,0.063,217.56,217.51,22.34017857]
[1738443107012,0.063,217.56,217.49,3.58]
[1738443108214,0.063,217.56,217.5,13.41184853]
[1738443109004,0.063,217.56,217.49,3.58]
[1738443109005,0.063,217.56,217.49,13.41184853]
[1738443109213,0.063,217.56,217.5,3.56]
[1738443110612,0.063,217.56,217.51,13.41184853]
[1738443110796,0.063,217.56,217.53,13.41184853]
[1738443110994,0.063,217.56,217.53,35.7520271]
[1738443111706,0.063,217.56,217.5,3.56]
[1738443111707,0.063,217.56,217.5,25.90017857]
[1738443111912,0.063,217.56,217.51,13.41184853]
[1738443112307,0.063,217.56,217.47,22.34017857]
[1738443112607,0.063,217.56,217.48,3.56]
[1738443112811,0.063,217.56,217.49,13.41184853]
[1738443113186,1.5726,217.56,217.49,13.41184853]
[1738443114224,1.5726,217.56,217.48,13.41184853]
[1738443115296,1.5726,217.56,217.49,13.96859575]
[1738443116207,1.5726,217.56,217.48,13.41184853]
[1738443116901,1.5726,217.56,217.5,13.41184853]
[1738443117318,1.5726,217.56,217.48,27.38044428]
[1738443118394,1.5726,217.56,217.46,0.03]
[1738443119605,1.5726,217.56,217.46,13.44184853]
[1738443120130,0.86189752,217.55,217.46,0.03]
[1738443120334,20.0,217.52,217.46,0.03]
[1738443122437,6.3866,217.55,217.47,13.96859575]
[1738443122607,6.3866,217.55,217.48,27.38044428]
[1738443123528,6.3866,217.55,217.48,13.41184853]
[1738443123834,20.0,217.52,217.46,0.03]
[1738443124818,0.86211139,217.51,217.39,0.03]
[1738443127701,0.86211139,217.51,217.41,13.41184853]
[1738443128634,0.86211139,217.51,217.39,0.03]
[1738443129009,0.86211139,217.51,217.39,13.44184853]
[1738443129534,0.86211139,217.51,217.39,0.03]
[1738443132534,0.86211139,217.51,217.39,13.44184853]
[1738443133244,21.19432327,217.52,217.41,13.96859575]
[1738443133245,1.19432327,217.52,217.41,13.96859575]
[1738443133416,0.063,217.52,217.45,27.38044428]
[1738443133611,0.063,217.52,217.48,13.41184853]
[1738443134320,0.063,217.52,217.47,13.41184853]
[1738443134738,0.063,217.52,217.49,27.38044428]
[1738443135126,0.063,217.52,217.49,13.41184853]
[1738443135844,0.063,217.52,217.41,1.0]
[1738443135845,20.063,217.52,217.44,3.56]
[1738443136336,0.86205427,217.51,217.44,3.56]
[1738443136538,0.86205427,217.51,217.39,0.03]
[1738443136721,1.6033,217.5,217.39,0.03]
[1738443136922,20.0,217.46,217.39,0.03]
[1738443137128,0.8624503,217.45,217.39,0.03]
[1738443138222,1.16886685,217.45,217.39,0.03]
[1738443138435,20.0,217.46,217.4,13.41184853]
[1738443138634,6.2958,217.49,217.43,13.41184853]
[1738443139734,6.2958,217.49,217.42,13.41184853]
[1738443140146,6.2958,217.49,217.4,22.35389224]
[1738443140454,6.2958,217.49,217.41,13.41184853]
[1738443140630,6.2958,217.49,217.42,13.41184853]